[Event "Live Chess"]
[Site "Chess.com"]
[Date "2024.06.01"]
[Round "-"]
[White "nitrofish07"]
[Black "DoggyDalmatian"]
[Result "1/2-1/2"]
[WhiteElo "2116"]
[BlackElo "1544"]
[TimeControl "300"]
[EndTime "9:24:01 PDT"]
[Termination "Game drawn by repetition"]

1. e4 {[%clk 0:04:58.6]} 1... e5 {[%clk 0:04:56.7]} 2. Nf3 {[%clk 0:04:57.3]}
2... Nc6 {[%clk 0:04:54.8]} 3. Bb5 {[%clk 0:04:56.6]} 3... Nf6 {[%clk
0:04:53.3]} 4. O-O {[%clk 0:04:55.5]} 4... Nxe4 {[%clk 0:04:50.4]} 5. d4 {[%clk
0:04:53.8]} 5... Nd6 {[%clk 0:04:46.3]} 6. dxe5 {[%clk 0:04:52.8]} 6... Nxb5
{[%clk 0:04:44.4]} 7. a4 {[%clk 0:04:52.4]} 7... Nbd4 {[%clk 0:04:43.5]} 8. Nxd4
{[%clk 0:04:51.3]} 8... Bc5 {[%clk 0:04:41]} 9. Nxc6 {[%clk 0:04:42.5]} 9...
bxc6 {[%clk 0:04:37.9]} 10. Nc3 {[%clk 0:04:33.1]} 10... O-O {[%clk 0:04:35.1]}
11. Qf3 {[%clk 0:04:28.1]} 11... Qe7 {[%clk 0:04:22.7]} 12. Qg3 {[%clk
0:04:21.9]} 12... d6 {[%clk 0:04:01.8]} 13. Bh6 {[%clk 0:04:17.8]} 13... f6
{[%clk 0:03:48.9]} 14. exf6 {[%clk 0:04:03.4]} 14... Qxf6 {[%clk 0:03:43.4]} 15.
Bg5 {[%clk 0:03:59.9]} 15... Qg6 {[%clk 0:03:40.4]} 16. Bf4 {[%clk 0:03:47.5]}
16... Qxg3 {[%clk 0:03:38.1]} 17. Bxg3 {[%clk 0:03:47.4]} 17... Bf5 {[%clk
0:03:32.8]} 18. Rac1 {[%clk 0:03:42.5]} 18... Rab8 {[%clk 0:03:17.2]} 19. b3
{[%clk 0:03:40.6]} 19... Bb4 {[%clk 0:03:14.6]} 20. Ne2 {[%clk 0:03:36.4]} 20...
Rfe8 {[%clk 0:03:11.5]} 21. Nd4 {[%clk 0:03:33.7]} 21... Bg6 {[%clk 0:03:09.7]}
22. Nxc6 {[%clk 0:03:31.5]} 22... Rb6 {[%clk 0:03:07.1]} 23. Nxb4 {[%clk
0:03:28.3]} 23... Rxb4 {[%clk 0:03:07]} 24. f3 {[%clk 0:03:21.1]} 24... Re2
{[%clk 0:03:03.5]} 25. Rf2 {[%clk 0:02:59.9]} 25... Re6 {[%clk 0:02:58.2]} 26.
Rd2 {[%clk 0:02:56.4]} 26... Rb8 {[%clk 0:02:52.5]} 27. Bf2 {[%clk 0:02:54.3]}
27... Ra8 {[%clk 0:02:49.6]} 28. Re1 {[%clk 0:02:50.5]} 28... Rxe1+ {[%clk
0:02:47.2]} 29. Bxe1 {[%clk 0:02:50.4]} 29... Re8 {[%clk 0:02:45.4]} 30. Kf2
{[%clk 0:02:49.3]} 30... a6 {[%clk 0:02:43.8]} 31. Rd5 {[%clk 0:02:47.4]} 31...
Bxc2 {[%clk 0:02:39.3]} 32. Ra5 {[%clk 0:02:36.5]} 32... Bd3 {[%clk 0:02:32.7]}
33. Bc3 {[%clk 0:02:24.7]} 33... Re2+ {[%clk 0:02:30.4]} 34. Kg3 {[%clk
0:02:23.6]} 34... g6 {[%clk 0:02:22]} 35. h4 {[%clk 0:02:22]} 35... h5 {[%clk
0:02:20]} 36. Rd5 {[%clk 0:02:15.2]} 36... Bf5 {[%clk 0:02:14.7]} 37. Ba5 {[%clk
0:02:06.4]} 37... Rc2 {[%clk 0:02:11.5]} 38. b4 {[%clk 0:01:53.5]} 38... Kf7
{[%clk 0:02:08.9]} 39. b5 {[%clk 0:01:49.2]} 39... axb5 {[%clk 0:02:07.7]} 40.
Rxb5 {[%clk 0:01:48]} 40... Ra2 {[%clk 0:02:03.3]} 41. Bxc7 {[%clk 0:01:40.4]}
41... Rxa4 {[%clk 0:02:02.1]} 42. Bxd6 {[%clk 0:01:38.7]} 42... Ke6 {[%clk
0:01:58]} 43. Bf4 {[%clk 0:01:37.6]} 43... Ra6 {[%clk 0:01:51.1]} 44. Re5+
{[%clk 0:01:36.3]} 44... Kf7 {[%clk 0:01:48.6]} 45. Bg5 {[%clk 0:01:33]} 45...
Re6 {[%clk 0:01:46.2]} 46. Rc5 {[%clk 0:01:32.6]} 46... Ke8 {[%clk 0:01:41.4]}
47. Kf4 {[%clk 0:01:29.7]} 47... Kd7 {[%clk 0:01:40.1]} 48. Rc1 {[%clk
0:01:22.4]} 48... Ra6 {[%clk 0:01:37.7]} 49. Rc4 {[%clk 0:01:15.1]} 49... Ke6
{[%clk 0:01:36.1]} 50. Rc7 {[%clk 0:01:06.2]} 50... Ra4+ {[%clk 0:01:34.5]} 51.
Kg3 {[%clk 0:01:05.4]} 51... Kd6 {[%clk 0:01:32.5]} 52. Rc1 {[%clk 0:01:01.4]}
52... Ke5 {[%clk 0:01:28.2]} 53. Re1+ {[%clk 0:00:58.3]} 53... Kd5 {[%clk
0:01:26]} 54. Bf4 {[%clk 0:00:52.7]} 54... Ra2 {[%clk 0:01:17]} 55. Rd1+ {[%clk
0:00:47.4]} 55... Ke6 {[%clk 0:01:15.7]} 56. Bg5 {[%clk 0:00:44.5]} 56... Ke5
{[%clk 0:01:11.6]} 57. Re1+ {[%clk 0:00:41.9]} 57... Kd5 {[%clk 0:01:10]} 58.
Rd1+ {[%clk 0:00:32.9]} 58... Ke6 {[%clk 0:01:06.2]} 59. Rc1 {[%clk 0:00:31.5]}
59... Kd5 {[%clk 0:01:04.6]} 60. Rc7 {[%clk 0:00:27.4]} 60... Kd6 {[%clk
0:01:03.1]} 61. Rb7 {[%clk 0:00:23.4]} 61... Kc6 {[%clk 0:01:01.9]} 62. Re7
{[%clk 0:00:22.6]} 62... Kd6 {[%clk 0:01:00.2]} 63. Re3 {[%clk 0:00:21.8]} 63...
Ra4 {[%clk 0:00:55.1]} 64. Kf2 {[%clk 0:00:20.7]} 64... Ra2+ {[%clk 0:00:52.5]}
65. Kg3 {[%clk 0:00:19.5]} 65... Ra5 {[%clk 0:00:51.3]} 66. Rc3 {[%clk
0:00:18.7]} 66... Ke6 {[%clk 0:00:49.4]} 67. Rb3 {[%clk 0:00:17.7]} 67... Ra2
{[%clk 0:00:48.1]} 68. Rb6+ {[%clk 0:00:17.1]} 68... Kd5 {[%clk 0:00:46.7]} 69.
Rb4 {[%clk 0:00:16.8]} 69... Kc5 {[%clk 0:00:45.7]} 70. Rf4 {[%clk 0:00:16.1]}
70... Kd5 {[%clk 0:00:44.5]} 71. Rb4 {[%clk 0:00:15.3]} 71... Kc5 {[%clk
0:00:43.4]} 72. Be7+ {[%clk 0:00:14.4]} 72... Kd5 {[%clk 0:00:42]} 73. Bg5
{[%clk 0:00:11.3]} 1/2-1/2

[Event "Live Chess"]
[Site "Chess.com"]
[Date "2024.06.01"]
[Round "-"]
[White "Ferrarifan27"]
[Black "f4nomore"]
[Result "1-0"]
[WhiteElo "2077"]
[BlackElo "1197"]
[TimeControl "300"]
[EndTime "9:24:01 PDT"]
[Termination "Ferrarifan27 won by resignation"]

1. e4 {[%clk 0:04:57.4]} 1... g6 {[%clk 0:04:59.9]} 2. d4 {[%clk 0:04:56.1]}
2... Bg7 {[%clk 0:04:59.8]} 3. Nf3 {[%clk 0:04:54.7]} 3... d6 {[%clk 0:04:59.7]}
4. Nc3 {[%clk 0:04:53]} 4... Nd7 {[%clk 0:04:58.6]} 5. Bc4 {[%clk 0:04:51.6]}
5... e6 {[%clk 0:04:56.2]} 6. O-O {[%clk 0:04:50.1]} 6... Ne7 {[%clk 0:04:54.7]}
7. Bg5 {[%clk 0:04:46.7]} 7... O-O {[%clk 0:04:53.4]} 8. Qd2 {[%clk 0:04:45.3]}
8... d5 {[%clk 0:04:49.5]} 9. exd5 {[%clk 0:04:44]} 9... exd5 {[%clk 0:04:44.3]}
10. Nxd5 {[%clk 0:04:42.3]} 10... f6 {[%clk 0:04:42.5]} 11. Nxe7+ {[%clk
0:04:39.6]} 11... Kh8 {[%clk 0:04:37.8]} 12. Nxc8 {[%clk 0:04:28.2]} 12... fxg5
{[%clk 0:04:33.2]} 13. Nxg5 {[%clk 0:04:27.2]} 13... Qxc8 {[%clk 0:04:28.6]} 14.
Nf7+ {[%clk 0:04:24.5]} 14... Rxf7 {[%clk 0:04:26.7]} 15. Bxf7 {[%clk
0:04:22.7]} 15... Nf6 {[%clk 0:04:23.7]} 16. Rfe1 {[%clk 0:04:19.7]} 16... Qf5
{[%clk 0:04:19.5]} 17. Be6 {[%clk 0:04:16.7]} 17... Qb5 {[%clk 0:04:00.7]} 18.
c4 {[%clk 0:04:14.9]} 18... Qb6 {[%clk 0:03:52.9]} 19. Rad1 {[%clk 0:04:11]}
19... Re8 {[%clk 0:03:49.6]} 20. d5 {[%clk 0:04:09]} 20... h5 {[%clk 0:03:32.6]}
21. Bf7 {[%clk 0:04:06.8]} 21... Rxe1+ {[%clk 0:03:21.8]} 22. Rxe1 {[%clk
0:04:06.7]} 22... Kh7 {[%clk 0:03:19.2]} 23. Qc2 {[%clk 0:04:01.1]} 23... Ng4
{[%clk 0:03:01.1]} 24. Re6 {[%clk 0:03:48.7]} 24... Qxf2+ {[%clk 0:02:39.9]} 25.
Qxf2 {[%clk 0:03:46.5]} 25... Nxf2 {[%clk 0:02:36.4]} 26. Kxf2 {[%clk
0:03:45.2]} 26... Bxb2 {[%clk 0:02:33.1]} 27. Bxg6+ {[%clk 0:03:42.6]} 27... Kg7
{[%clk 0:02:31]} 28. Bxh5 {[%clk 0:03:41.4]} 28... Bd4+ {[%clk 0:02:26]} 29. Kf3
{[%clk 0:03:39.6]} 29... a6 {[%clk 0:02:18.9]} 30. Ke4 {[%clk 0:03:38]} 30...
Bc5 {[%clk 0:02:17.1]} 31. Bd1 {[%clk 0:03:31.5]} 31... Bd6 {[%clk 0:02:15.1]}
32. Rxd6 {[%clk 0:03:29.2]} 32... cxd6 {[%clk 0:02:13.3]} 33. Kf5 {[%clk
0:03:27.3]} 33... b6 {[%clk 0:02:10.1]} 34. Ke6 {[%clk 0:03:25.8]} 1-0

[Event "Live Chess"]
[Site "Chess.com"]
[Date "2024.06.01"]
[Round "-"]
[White "Enhard"]
[Black "booktrunk"]
[Result "1-0"]
[WhiteElo "1441"]
[BlackElo "1364"]
[TimeControl "300"]
[EndTime "9:24:14 PDT"]
[Termination "Enhard won by resignation"]

1. d4 {[%clk 0:04:57]} 1... e6 {[%clk 0:04:57.3]} 2. Bf4 {[%clk 0:04:56.1]} 2...
Nc6 {[%clk 0:04:51.9]} 3. e3 {[%clk 0:04:55.4]} 3... b6 {[%clk 0:04:49.9]} 4.
Nf3 {[%clk 0:04:52.2]} 4... Bb7 {[%clk 0:04:48.4]} 5. h3 {[%clk 0:04:48.2]} 5...
h6 {[%clk 0:04:47]} 6. c3 {[%clk 0:04:47.1]} 6... Nf6 {[%clk 0:04:45.3]} 7. Be2
{[%clk 0:04:45.9]} 7... Nh5 {[%clk 0:04:41.3]} 8. Bh2 {[%clk 0:04:44.7]} 8...
Nf6 {[%clk 0:04:39.1]} 9. Nbd2 {[%clk 0:04:43.2]} 9... a5 {[%clk 0:04:34.4]} 10.
a4 {[%clk 0:04:41.6]} 10... d5 {[%clk 0:04:22.5]} 11. O-O {[%clk 0:04:38.9]}
11... Bd6 {[%clk 0:04:21.4]} 12. Bxd6 {[%clk 0:04:35.4]} 12... Qxd6 {[%clk
0:04:20.2]} 13. Re1 {[%clk 0:04:33.3]} 13... Ne7 {[%clk 0:04:14.2]} 14. Ne5
{[%clk 0:04:31.5]} 14... Nd7 {[%clk 0:04:10.6]} 15. Nxd7 {[%clk 0:04:29]} 15...
Qxd7 {[%clk 0:04:08.3]} 16. Bf3 {[%clk 0:04:28.3]} 16... Ng6 {[%clk 0:04:03.2]}
17. e4 {[%clk 0:04:26.9]} 17... dxe4 {[%clk 0:04:00.1]} 18. Bxe4 {[%clk
0:04:25.9]} 18... Bxe4 {[%clk 0:03:58.2]} 19. Nxe4 {[%clk 0:04:25.4]} 19... O-O
{[%clk 0:03:52.6]} 20. Ng3 {[%clk 0:04:18.7]} 20... Rad8 {[%clk 0:03:48.1]} 21.
Qg4 {[%clk 0:04:16.6]} 21... Qe7 {[%clk 0:03:40.5]} 22. Nh5 {[%clk 0:04:09.6]}
22... Qg5 {[%clk 0:03:32]} 23. Qxg5 {[%clk 0:04:06.5]} 23... hxg5 {[%clk
0:03:30.1]} 24. Ng3 {[%clk 0:04:05.1]} 24... Rfe8 {[%clk 0:03:25.3]} 25. Ne4
{[%clk 0:04:03.2]} 25... f6 {[%clk 0:03:19.7]} 26. Ng3 {[%clk 0:03:48.9]} 26...
Kf7 {[%clk 0:03:16.5]} 27. Re2 {[%clk 0:03:46.5]} 27... Nf4 {[%clk 0:03:14.5]}
28. Re3 {[%clk 0:03:42]} 28... Rd5 {[%clk 0:03:11]} 29. Rae1 {[%clk 0:03:39.1]}
29... c5 {[%clk 0:03:02.8]} 30. dxc5 {[%clk 0:03:30.7]} 30... Rxc5 {[%clk
0:02:56.9]} 31. Ne4 {[%clk 0:03:28.8]} 31... Rc6 {[%clk 0:02:46.2]} 32. Nd2
{[%clk 0:03:17.5]} 32... Rd8 {[%clk 0:02:40.5]} 33. Nb3 {[%clk 0:03:15.7]} 33...
Rd3 {[%clk 0:02:36.8]} 34. Nd4 {[%clk 0:03:11.7]} 34... Rd6 {[%clk 0:02:20.6]}
35. Kh2 {[%clk 0:02:51.4]} 35... Rxe3 {[%clk 0:02:18]} 36. Rxe3 {[%clk
0:02:48.4]} 36... Nd5 {[%clk 0:02:11.9]} 37. Re2 {[%clk 0:02:39.7]} 37... Nf4
{[%clk 0:02:02.4]} 38. Re3 {[%clk 0:02:34.6]} 38... e5 {[%clk 0:01:55.8]} 39.
Nf5 {[%clk 0:02:25.6]} 39... Rd3 {[%clk 0:01:52.5]} 40. g3 {[%clk 0:02:21.3]}
40... Rxe3 {[%clk 0:01:44.7]} 41. Nxe3 {[%clk 0:02:15.2]} 41... Nd3 {[%clk
0:01:43.3]} 42. b3 {[%clk 0:02:04.7]} 42... Nc5 {[%clk 0:01:37.5]} 43. Kg2
{[%clk 0:02:04.6]} 43... Nxb3 {[%clk 0:01:35.6]} 44. Nc4 {[%clk 0:02:02.8]}
44... Nc5 {[%clk 0:01:33.4]} 45. Nxb6 {[%clk 0:01:59.3]} 45... Ke6 {[%clk
0:01:30.1]} 46. c4 {[%clk 0:01:56.6]} 46... Kd6 {[%clk 0:01:22.3]} 47. Kf3
{[%clk 0:01:46.8]} 47... Kc6 {[%clk 0:01:19.8]} 48. Nd5 {[%clk 0:01:43.7]} 48...
Nxa4 {[%clk 0:01:17.3]} 49. Ke4 {[%clk 0:01:33.3]} 49... Kc5 {[%clk 0:01:14.7]}
50. Kf5 {[%clk 0:01:27.4]} 50... Kxc4 {[%clk 0:01:12.6]} 51. Ne3+ {[%clk
0:01:26.1]} 51... Kd3 {[%clk 0:01:10.8]} 52. Kg6 {[%clk 0:01:24.6]} 52... Nc5
{[%clk 0:01:09.4]} 53. Kxg7 {[%clk 0:01:23.7]} 53... a4 {[%clk 0:01:08.7]} 54.
Nd5 {[%clk 0:01:18.6]} 54... Kc4 {[%clk 0:01:04.6]} 55. Nb6+ {[%clk 0:01:16.5]}
55... Kd4 {[%clk 0:01:02.6]} 56. Nxa4 {[%clk 0:01:14.5]} 56... Nxa4 {[%clk
0:01:01]} 57. Kxf6 {[%clk 0:01:14]} 57... Ke4 {[%clk 0:00:58.9]} 58. Kxg5 {[%clk
0:01:13.1]} 58... Nc5 {[%clk 0:00:57.6]} 59. h4 {[%clk 0:01:12.5]} 59... Ne6+
{[%clk 0:00:56.5]} 60. Kf6 {[%clk 0:01:10]} 60... Nd4 {[%clk 0:00:54]} 61. h5
{[%clk 0:01:09.1]} 61... Nf3 {[%clk 0:00:49]} 62. h6 {[%clk 0:01:07.2]} 62...
Nd2 {[%clk 0:00:47.2]} 63. h7 {[%clk 0:01:05.6]} 63... Kf3 {[%clk 0:00:46]} 64.
h8=Q {[%clk 0:01:02.3]} 64... Kxf2 {[%clk 0:00:45.7]} 65. Qh2+ {[%clk
0:00:56.1]} 65... Ke3 {[%clk 0:00:42.8]} 66. Qxd2+ {[%clk 0:00:54.9]} 66... Kxd2
{[%clk 0:00:41.2]} 67. Kxe5 {[%clk 0:00:54.4]} 67... Ke3 {[%clk 0:00:40.2]} 68.
g4 {[%clk 0:00:53.9]} 68... Kf3 {[%clk 0:00:39.7]} 69. g5 {[%clk 0:00:53.1]}
69... Kg4 {[%clk 0:00:38.8]} 70. g6 {[%clk 0:00:52.6]} 70... Kf3 {[%clk
0:00:38.6]} 71. g7 {[%clk 0:00:52]} 71... Ke3 {[%clk 0:00:38]} 72. g8=Q {[%clk
0:00:51.1]} 72... Kd3 {[%clk 0:00:36.9]} 73. Qg4 {[%clk 0:00:50.3]} 73... Ke3
{[%clk 0:00:35.1]} 74. Qg3+ {[%clk 0:00:49.2]} 1-0

[Event "Live Chess"]
[Site "Chess.com"]
[Date "2024.06.01"]
[Round "-"]
[White "MaximKhimchenko"]
[Black "raimundklein"]
[Result "1-0"]
[WhiteElo "1764"]
[BlackElo "1619"]
[TimeControl "300"]
[EndTime "9:24:24 PDT"]
[Termination "MaximKhimchenko won by resignation"]

1. e4 {[%clk 0:04:58.3]} 1... c6 {[%clk 0:04:58.9]} 2. d4 {[%clk 0:04:55.6]}
2... d5 {[%clk 0:04:58]} 3. e5 {[%clk 0:04:51.5]} 3... Bf5 {[%clk 0:04:56.8]} 4.
h4 {[%clk 0:04:50.2]} 4... h5 {[%clk 0:04:53.8]} 5. Bd3 {[%clk 0:04:34.9]} 5...
Bxd3 {[%clk 0:04:51.6]} 6. Qxd3 {[%clk 0:04:34]} 6... e6 {[%clk 0:04:47.8]} 7.
Bg5 {[%clk 0:04:29.6]} 7... Qa5+ {[%clk 0:04:42.2]} 8. Nd2 {[%clk 0:04:27.7]}
8... Nd7 {[%clk 0:04:37.1]} 9. Nf3 {[%clk 0:04:14.2]} 9... Ne7 {[%clk
0:04:33.7]} 10. O-O {[%clk 0:04:04]} 10... Nf5 {[%clk 0:04:31.2]} 11. Rfd1
{[%clk 0:04:00.7]} 11... Be7 {[%clk 0:04:22.9]} 12. Bxe7 {[%clk 0:03:58.8]}
12... Kxe7 {[%clk 0:04:21.6]} 13. Nf1 {[%clk 0:03:57.1]} 13... g6 {[%clk
0:04:10.5]} 14. Ng3 {[%clk 0:03:54.4]} 14... Rag8 {[%clk 0:04:03.2]} 15. Nxf5+
{[%clk 0:03:49.7]} 15... gxf5 {[%clk 0:04:02.3]} 16. Ng5 {[%clk 0:03:45.6]}
16... b6 {[%clk 0:03:47.7]} 17. c4 {[%clk 0:03:38.4]} 17... Qb4 {[%clk
0:03:33.5]} 18. cxd5 {[%clk 0:03:34.4]} 18... cxd5 {[%clk 0:03:30.9]} 19. b3
{[%clk 0:03:32.6]} 19... Rc8 {[%clk 0:03:27]} 20. a3 {[%clk 0:03:31.5]} 20...
Qc3 {[%clk 0:03:23.1]} 21. Qa6 {[%clk 0:03:26.6]} 21... Rc7 {[%clk 0:03:17.2]}
22. Kh2 {[%clk 0:03:21.8]} 22... Rhc8 {[%clk 0:03:10.8]} 23. b4 {[%clk
0:03:14.1]} 23... Nf8 {[%clk 0:02:46.3]} 24. Rab1 {[%clk 0:02:59.9]} 24... Qc2
{[%clk 0:02:44]} 25. f3 {[%clk 0:02:52.3]} 25... Ng6 {[%clk 0:02:42.1]} 26. Rbc1
{[%clk 0:02:44.4]} 26... Qxc1 {[%clk 0:02:23.8]} 27. Rxc1 {[%clk 0:02:44.3]}
27... Rxc1 {[%clk 0:02:23]} 28. Qxa7+ {[%clk 0:02:43.5]} 28... R8c7 {[%clk
0:02:22.3]} 29. Qxb6 {[%clk 0:02:42]} 29... R1c6 {[%clk 0:02:15.6]} 30. Qb8
{[%clk 0:02:34.7]} 30... Rc8 {[%clk 0:02:09.4]} 31. Qa7+ {[%clk 0:02:32.1]}
31... R8c7 {[%clk 0:02:05.7]} 32. Qa4 {[%clk 0:02:27.2]} 32... Nxh4 {[%clk
0:02:01.8]} 33. Nh7 {[%clk 0:02:19.6]} 33... Rc2 {[%clk 0:01:55.4]} 34. Nf6
{[%clk 0:02:18.4]} 34... R7c6 {[%clk 0:01:30.7]} 35. b5 {[%clk 0:02:15.3]} 35...
R6c4 {[%clk 0:01:19.3]} 36. Qa7+ {[%clk 0:02:11.6]} 36... Rc7 {[%clk 0:01:18.2]}
37. Qb8 {[%clk 0:02:05]} 37... Nxf3+ {[%clk 0:00:46.4]} 38. Kg3 {[%clk
0:02:00.9]} 38... h4+ {[%clk 0:00:45.3]} 39. Kh3 {[%clk 0:01:51.7]} 39... Ng5+
{[%clk 0:00:16.7]} 40. Kxh4 {[%clk 0:01:50]} 40... Nf3+ {[%clk 0:00:13.3]} 41.
gxf3 {[%clk 0:01:47.9]} 41... Rh2+ {[%clk 0:00:11.6]} 42. Kg3 {[%clk 0:01:47.4]}
1-0

[Event "Live Chess"]
[Site "Chess.com"]
[Date "2024.06.01"]
[Round "-"]
[White "A3ndrey9"]
[Black "elephantgerrald"]
[Result "1-0"]
[WhiteElo "1254"]
[BlackElo "714"]
[TimeControl "300"]
[EndTime "9:24:24 PDT"]
[Termination "A3ndrey9 won by checkmate"]

1. Nf3 {[%clk 0:04:58.2]} 1... Nc6 {[%clk 0:04:57.5]} 2. d4 {[%clk 0:04:58.1]}
2... d5 {[%clk 0:04:55.6]} 3. g3 {[%clk 0:04:56.1]} 3... Bg4 {[%clk 0:04:54.6]}
4. Bg2 {[%clk 0:04:55.4]} 4... Bxf3 {[%clk 0:04:53.4]} 5. Bxf3 {[%clk
0:04:55.3]} 5... Nf6 {[%clk 0:04:52.4]} 6. O-O {[%clk 0:04:54.7]} 6... e6 {[%clk
0:04:50]} 7. Bf4 {[%clk 0:04:54.1]} 7... Bd6 {[%clk 0:04:48.9]} 8. Bxd6 {[%clk
0:04:53.1]} 8... Qxd6 {[%clk 0:04:48.2]} 9. Nd2 {[%clk 0:04:53]} 9... O-O {[%clk
0:04:46.5]} 10. c4 {[%clk 0:04:52.4]} 10... dxc4 {[%clk 0:04:45.5]} 11. Nxc4
{[%clk 0:04:49.8]} 11... Qxd4 {[%clk 0:04:44.3]} 12. Qxd4 {[%clk 0:04:47.7]}
12... Nxd4 {[%clk 0:04:42.8]} 13. Bxb7 {[%clk 0:04:44.2]} 13... Rab8 {[%clk
0:04:41.1]} 14. Bg2 {[%clk 0:04:40.3]} 14... Nxe2+ {[%clk 0:04:37.9]} 15. Kh1
{[%clk 0:04:39.3]} 15... Nd4 {[%clk 0:04:31.5]} 16. Rfd1 {[%clk 0:04:23.3]}
16... Nc2 {[%clk 0:04:28.8]} 17. Rac1 {[%clk 0:04:16.6]} 17... Nb4 {[%clk
0:04:25.4]} 18. a3 {[%clk 0:04:14.8]} 18... Nc6 {[%clk 0:04:22.7]} 19. Bxc6
{[%clk 0:04:12.7]} 19... h5 {[%clk 0:04:17.7]} 20. Ne5 {[%clk 0:04:11.8]} 20...
Rxb2 {[%clk 0:04:14.4]} 21. Rb1 {[%clk 0:04:00.9]} 21... Rxf2 {[%clk 0:04:12.3]}
22. Nd7 {[%clk 0:03:50.1]} 22... Nxd7 {[%clk 0:04:10.4]} 23. Rxd7 {[%clk
0:03:47.6]} 23... Kh7 {[%clk 0:04:08.5]} 24. Rxc7 {[%clk 0:03:44.6]} 24... f5
{[%clk 0:04:04.3]} 25. Rxa7 {[%clk 0:03:41.3]} 25... Rf6 {[%clk 0:03:44.8]} 26.
Bg2 {[%clk 0:03:34.3]} 26... Kg6 {[%clk 0:03:38.2]} 27. Rbb7 {[%clk 0:03:32.8]}
27... Ra2 {[%clk 0:03:35.1]} 28. Rxg7+ {[%clk 0:03:30.4]} 28... Kh6 {[%clk
0:03:33.2]} 29. Rh7+ {[%clk 0:03:29.7]} 29... Kg6 {[%clk 0:03:31.9]} 30. Rag7#
{[%clk 0:03:29.2]} 1-0

[Event "Live Chess"]
[Site "Chess.com"]
[Date "2024.06.01"]
[Round "-"]
[White "CarmelJane"]
[Black "Isambard_Thomas"]
[Result "0-1"]
[WhiteElo "2107"]
[BlackElo "2102"]
[TimeControl "300"]
[EndTime "9:24:40 PDT"]
[Termination "Isambard_Thomas won by checkmate"]

1. e4 {[%clk 0:04:58.2]} 1... Nc6 {[%clk 0:04:58.4]} 2. Nf3 {[%clk 0:04:56.4]}
2... d5 {[%clk 0:04:57.7]} 3. exd5 {[%clk 0:04:56.3]} 3... Qxd5 {[%clk
0:04:56.9]} 4. d4 {[%clk 0:04:50.9]} 4... Bg4 {[%clk 0:04:55.6]} 5. Be2 {[%clk
0:04:49.1]} 5... Qh5 {[%clk 0:04:54.5]} 6. Be3 {[%clk 0:04:30]} 6... Nf6 {[%clk
0:04:42.6]} 7. Nbd2 {[%clk 0:04:24.2]} 7... O-O-O {[%clk 0:04:40.6]} 8. c3
{[%clk 0:04:16.3]} 8... e6 {[%clk 0:04:36]} 9. O-O {[%clk 0:04:11.8]} 9... Bd6
{[%clk 0:04:31.9]} 10. h3 {[%clk 0:04:09.4]} 10... h6 {[%clk 0:04:11.1]} 11.
hxg4 {[%clk 0:03:45.6]} 11... Nxg4 {[%clk 0:04:07.3]} 12. g3 {[%clk 0:03:41.1]}
12... Qh3 {[%clk 0:04:01.9]} 13. Ne4 {[%clk 0:03:33.5]} 13... Bxg3 {[%clk
0:03:34.8]} 14. Nxg3 {[%clk 0:03:06.1]} 14... Nce5 {[%clk 0:03:29.6]} 15. dxe5
{[%clk 0:02:40.7]} 15... Nxe3 {[%clk 0:03:27.1]} 16. fxe3 {[%clk 0:02:13.1]}
16... Qxg3+ {[%clk 0:03:24.9]} 17. Kh1 {[%clk 0:02:11.6]} 17... Rxd1 {[%clk
0:03:16.2]} 18. Raxd1 {[%clk 0:02:11.5]} 18... Qh3+ {[%clk 0:03:15.5]} 19. Kg1
{[%clk 0:02:06.5]} 19... g5 {[%clk 0:02:57.5]} 20. Rf2 {[%clk 0:00:47.2]} 20...
Rg8 {[%clk 0:02:54.8]} 21. Rh2 {[%clk 0:00:39.6]} 21... Qf5 {[%clk 0:02:53.8]}
22. Rxh6 {[%clk 0:00:37.5]} 22... g4 {[%clk 0:02:50]} 23. Nd4 {[%clk 0:00:35.4]}
23... Qg5 {[%clk 0:02:31.7]} 24. Rh7 {[%clk 0:00:31.6]} 24... Qxe3+ {[%clk
0:02:29.8]} 25. Kf1 {[%clk 0:00:31]} 25... g3 {[%clk 0:02:16.7]} 26. Bf3 {[%clk
0:00:30.4]} 26... Qf2# {[%clk 0:02:15.2]} 0-1

[Event "Live Chess"]
[Site "Chess.com"]
[Date "2024.06.01"]
[Round "-"]
[White "JohanKjeldahl"]
[Black "ALEX_UA_69"]
[Result "0-1"]
[WhiteElo "1820"]
[BlackElo "1767"]
[TimeControl "300"]
[EndTime "9:24:48 PDT"]
[Termination "ALEX_UA_69 won by resignation"]

1. e4 {[%clk 0:04:57.2]} 1... e5 {[%clk 0:04:58.5]} 2. Nf3 {[%clk 0:04:55.2]}
2... Nc6 {[%clk 0:04:57.7]} 3. d4 {[%clk 0:04:54.1]} 3... exd4 {[%clk
0:04:56.5]} 4. c3 {[%clk 0:04:52.2]} 4... dxc3 {[%clk 0:04:54.4]} 5. Bc4 {[%clk
0:04:50.9]} 5... d6 {[%clk 0:04:53.5]} 6. Nxc3 {[%clk 0:04:47.8]} 6... Nf6
{[%clk 0:04:52.4]} 7. O-O {[%clk 0:04:44.3]} 7... Be7 {[%clk 0:04:51.4]} 8. h3
{[%clk 0:04:37.3]} 8... O-O {[%clk 0:04:50.1]} 9. a3 {[%clk 0:04:33.6]} 9... Ne5
{[%clk 0:04:48.9]} 10. Nxe5 {[%clk 0:04:30.1]} 10... dxe5 {[%clk 0:04:47.9]} 11.
Be3 {[%clk 0:04:27.5]} 11... Qxd1 {[%clk 0:04:43.7]} 12. Raxd1 {[%clk
0:04:25.9]} 12... b6 {[%clk 0:04:40.6]} 13. Nd5 {[%clk 0:04:21.5]} 13... Nxd5
{[%clk 0:04:36.5]} 14. Bxd5 {[%clk 0:04:20.2]} 14... Rb8 {[%clk 0:04:34.4]} 15.
Rc1 {[%clk 0:04:15.7]} 15... c5 {[%clk 0:04:32.8]} 16. f4 {[%clk 0:04:02.3]}
16... Bf6 {[%clk 0:04:21]} 17. g4 {[%clk 0:03:55]} 17... Bb7 {[%clk 0:04:10.2]}
18. g5 {[%clk 0:03:50.8]} 18... Bxd5 {[%clk 0:04:05.6]} 19. exd5 {[%clk
0:03:49.7]} 19... exf4 {[%clk 0:04:03.7]} 20. gxf6 {[%clk 0:03:47.1]} 20... fxe3
{[%clk 0:04:02.2]} 21. fxg7 {[%clk 0:03:45.5]} 21... Kxg7 {[%clk 0:04:01.4]} 22.
Rc3 {[%clk 0:03:40.2]} 22... Rfe8 {[%clk 0:03:59.8]} 23. Re1 {[%clk 0:03:36.7]}
23... Rbd8 {[%clk 0:03:58.6]} 24. Rcxe3 {[%clk 0:03:34.3]} 24... Rxe3 {[%clk
0:03:56.3]} 25. Rxe3 {[%clk 0:03:32.6]} 25... Rxd5 {[%clk 0:03:55.2]} 26. Re7
{[%clk 0:03:26.9]} 26... Rd2 {[%clk 0:03:48.1]} 27. Rxa7 {[%clk 0:03:24.4]}
27... Rxb2 {[%clk 0:03:46.4]} 28. Rb7 {[%clk 0:03:22.8]} 28... c4 {[%clk
0:03:44.7]} 0-1